[Event "Titled Tuesday Blitz July 11 Late 2023"]
[White "Gerbelli Neto, Eduardo"]
[Black "feuervogel1000000"]
[WhiteFideId "2103281"]
[WhiteElo "2343"]
[BlackElo "2515"]
[Result "1-0"]
[Round "7"]
[TimeControl "180+2"]
[Date "2023.07.11"]
[WhiteClock "0:00:57"]
[BlackClock "0:01:36"]
[Board "84"]

1. e4 {[%clk 0:03:00]}  c5 {[%clk 0:02:59]} 2. Nc3 {[%clk 0:03:00]}  Nc6 {[%clk 0:02:59]} 3. f4 {[%clk 0:03:01]}  g6 {[%clk 0:02:57]} 4. Nf3 {[%clk 0:03:02]}  Bg7 {[%clk 0:02:57]} 5. Bc4 {[%clk 0:03:03]}  d6 {[%clk 0:02:57]} 6. O-O {[%clk 0:03:02]}  e6 {[%clk 0:02:57]} 7. d3 {[%clk 0:03:01]}  a6 {[%clk 0:02:57]} 8. Qe1 {[%clk 0:03:01]}  b5 {[%clk 0:02:57]} 9. Bb3 {[%clk 0:03:01]}  Nge7 {[%clk 0:02:57]} 10. f5 {[%clk 0:03:00]}  gxf5 {[%clk 0:02:56]} 11. Qh4 {[%clk 0:02:58]}  Nd4 {[%clk 0:02:53]} 12. Bg5 {[%clk 0:02:55]}  Qc7 {[%clk 0:02:47]} 13. Nxd4 {[%clk 0:02:44]}  Bxd4+ {[%clk 0:02:45]} 14. Kh1 {[%clk 0:02:44]}  Ng6 {[%clk 0:02:45]} 15. Qh5 {[%clk 0:02:40]}  fxe4 {[%clk 0:02:36]} 16. Nxe4 {[%clk 0:02:35]}  f5 {[%clk 0:02:35]} 17. Nf6+ {[%clk 0:02:23]}  Bxf6 {[%clk 0:02:33]} 18. Bxf6 {[%clk 0:02:24]}  Rg8 {[%clk 0:02:27]} 19. Rae1 {[%clk 0:02:20]}  c4 {[%clk 0:02:26]} 20. dxc4 {[%clk 0:02:17]}  bxc4 {[%clk 0:02:26]} 21. Ba4+ {[%clk 0:02:17]}  Kf8 {[%clk 0:02:16]} 22. Qh6+ {[%clk 0:02:09]}  Rg7 {[%clk 0:02:16]} 23. Bxg7+ {[%clk 0:02:04]}  Qxg7 {[%clk 0:02:17]} 24. Qxg7+ {[%clk 0:02:04]}  Kxg7 {[%clk 0:02:15]} 25. Bc6 {[%clk 0:01:59]}  Rb8 {[%clk 0:02:12]} 26. b3 {[%clk 0:01:59]}  cxb3 {[%clk 0:02:12]} 27. axb3 {[%clk 0:01:59]}  Ne5 {[%clk 0:02:13]} 28. Bf3 {[%clk 0:01:56]}  a5 {[%clk 0:02:10]} 29. Ra1 {[%clk 0:01:54]}  Ba6 {[%clk 0:02:10]} 30. Rf2 {[%clk 0:01:53]}  Rc8 {[%clk 0:02:02]} 31. Rxa5 {[%clk 0:01:50]}  Bd3 {[%clk 0:02:02]} 32. c4 {[%clk 0:01:45]}  Rb8 {[%clk 0:02:00]} 33. Ra7+ {[%clk 0:01:36]}  Kf6 {[%clk 0:01:59]} 34. Rb7 {[%clk 0:01:36]}  Ra8 {[%clk 0:01:59]} 35. Rf7+ {[%clk 0:01:32]}  Kxf7 {[%clk 0:01:59]} 36. Bxa8 {[%clk 0:01:33]}  Nd7 {[%clk 0:01:59]} 37. Rd2 {[%clk 0:01:29]}  Be4 {[%clk 0:01:54]} 38. Bxe4 {[%clk 0:01:22]}  fxe4 {[%clk 0:01:54]} 39. Rxd6 {[%clk 0:01:23]}  Ke7 {[%clk 0:01:54]} 40. Rd4 {[%clk 0:01:18]}  Nc5 {[%clk 0:01:47]} 41. b4 {[%clk 0:01:17]}  e5 {[%clk 0:01:47]} 42. Rd5 {[%clk 0:01:16]}  Nd3 {[%clk 0:01:47]} 43. Kg1 {[%clk 0:01:04]}  Ke6 {[%clk 0:01:45]} 44. b5 {[%clk 0:01:01]}  Nf4 {[%clk 0:01:44]} 45. Rd8 {[%clk 0:01:00]}  Ne2+ {[%clk 0:01:45]} 46. Kf2 {[%clk 0:00:59]}  Nd4 {[%clk 0:01:45]} 47. Ke3 {[%clk 0:00:58]}  Ke7 {[%clk 0:01:36]} 48. Rxd4 {[%clk 0:00:57]} 1-0


[Site "https://www.chess.com"]

[Event "Titled Tuesday Blitz July 11 Late 2023"]
[White "Al Mukhaini, Shima"]
[Black "Womacka, Mathias"]
[WhiteFideId "22005854"]
[BlackFideId "4611390"]
[WhiteElo "2330"]
[BlackElo "2514"]
[Result "1/2-1/2"]
[Round "7"]
[TimeControl "180+2"]
[Date "2023.07.11"]
[WhiteClock "0:00:07"]
[BlackClock "0:00:05"]
[Board "86"]

1. b3 {[%clk 0:03:00]}  e5 {[%clk 0:02:58]} 2. Bb2 {[%clk 0:03:01]}  Nc6 {[%clk 0:02:58]} 3. e3 {[%clk 0:03:01]}  Nf6 {[%clk 0:02:57]} 4. Bb5 {[%clk 0:03:02]}  Bd6 {[%clk 0:02:57]} 5. Ne2 {[%clk 0:03:03]}  Ne7 {[%clk 0:02:54]} 6. Ng3 {[%clk 0:03:02]}  c6 {[%clk 0:02:51]} 7. Be2 {[%clk 0:03:03]}  Bc7 {[%clk 0:02:51]} 8. d3 {[%clk 0:03:03]}  d5 {[%clk 0:02:51]} 9. Nd2 {[%clk 0:03:04]}  O-O {[%clk 0:02:50]} 10. O-O {[%clk 0:03:04]}  Ng6 {[%clk 0:02:47]} 11. Nh5 {[%clk 0:03:03]}  Re8 {[%clk 0:02:34]} 12. Nxf6+ {[%clk 0:02:59]}  Qxf6 {[%clk 0:02:35]} 13. Bg4 {[%clk 0:02:56]}  a5 {[%clk 0:02:11]} 14. Bxc8 {[%clk 0:02:55]}  Raxc8 {[%clk 0:02:11]} 15. Qg4 {[%clk 0:02:52]}  Qe6 {[%clk 0:01:57]} 16. Qxe6 {[%clk 0:02:51]}  Rxe6 {[%clk 0:01:57]} 17. a4 {[%clk 0:02:47]}  f5 {[%clk 0:01:56]} 18. Rae1 {[%clk 0:02:37]}  f4 {[%clk 0:01:52]} 19. e4 {[%clk 0:02:32]}  Bd6 {[%clk 0:01:43]} 20. Bc3 {[%clk 0:02:30]}  Bb4 {[%clk 0:01:40]} 21. Bxb4 {[%clk 0:02:29]}  axb4 {[%clk 0:01:41]} 22. g3 {[%clk 0:02:24]}  Rf8 {[%clk 0:01:31]} 23. Kg2 {[%clk 0:02:22]}  Ne7 {[%clk 0:01:23]} 24. f3 {[%clk 0:02:07]}  Nc8 {[%clk 0:01:10]} 25. Re2 {[%clk 0:01:57]}  Rfe8 {[%clk 0:01:10]} 26. Rfe1 {[%clk 0:01:57]}  g5 {[%clk 0:01:10]} 27. exd5 {[%clk 0:01:49]}  cxd5 {[%clk 0:01:09]} 28. d4 {[%clk 0:01:49]}  e4 {[%clk 0:00:55]} 29. fxe4 {[%clk 0:01:47]}  dxe4 {[%clk 0:00:56]} 30. Rxe4 {[%clk 0:01:47]}  Rxe4 {[%clk 0:00:54]} 31. Rxe4 {[%clk 0:01:48]}  Rf8 {[%clk 0:00:50]} 32. gxf4 {[%clk 0:01:47]}  gxf4 {[%clk 0:00:49]} 33. Kf3 {[%clk 0:01:46]}  Nd6 {[%clk 0:00:49]} 34. Rxf4 {[%clk 0:01:46]}  Rc8 {[%clk 0:00:48]} 35. Rf6 {[%clk 0:01:33]}  Rxc2 {[%clk 0:00:47]} 36. Rxd6 {[%clk 0:01:33]}  Rxd2 {[%clk 0:00:47]} 37. Rd8+ {[%clk 0:01:23]}  Kf7 {[%clk 0:00:46]} 38. Rd7+ {[%clk 0:01:23]}  Kg6 {[%clk 0:00:47]} 39. Rxb7 {[%clk 0:01:16]}  Rd3+ {[%clk 0:00:47]} 40. Ke4 {[%clk 0:01:13]}  Rxb3 {[%clk 0:00:47]} 41. h4 {[%clk 0:01:10]}  Rb1 {[%clk 0:00:46]} 42. h5+ {[%clk 0:01:08]}  Kxh5 {[%clk 0:00:43]} 43. Rxh7+ {[%clk 0:01:07]}  Kg6 {[%clk 0:00:44]} 44. Rb7 {[%clk 0:01:04]}  b3 {[%clk 0:00:37]} 45. Kd3 {[%clk 0:01:04]}  Kf6 {[%clk 0:00:35]} 46. Kc3 {[%clk 0:01:02]}  Ra1 {[%clk 0:00:35]} 47. Rb4 {[%clk 0:00:53]}  Ra3 {[%clk 0:00:31]} 48. Kb2 {[%clk 0:00:52]}  Ra2+ {[%clk 0:00:31]} 49. Kxb3 {[%clk 0:00:52]}  Ra1 {[%clk 0:00:30]} 50. Kc4 {[%clk 0:00:45]}  Ke6 {[%clk 0:00:30]} 51. Rb6+ {[%clk 0:00:43]}  Kd7 {[%clk 0:00:29]} 52. Kb5 {[%clk 0:00:42]}  Rd1 {[%clk 0:00:25]} 53. Kc5 {[%clk 0:00:36]}  Rc1+ {[%clk 0:00:24]} 54. Kd5 {[%clk 0:00:34]}  Kc7 {[%clk 0:00:25]} 55. Rb5 {[%clk 0:00:32]}  Rh1 {[%clk 0:00:22]} 56. Rc5+ {[%clk 0:00:30]}  Kb6 {[%clk 0:00:22]} 57. a5+ {[%clk 0:00:30]}  Ka6 {[%clk 0:00:19]} 58. Ke4 {[%clk 0:00:25]}  Rh4+ {[%clk 0:00:18]} 59. Kd3 {[%clk 0:00:25]}  Rh1 {[%clk 0:00:17]} 60. Rg5 {[%clk 0:00:23]}  Rh4 {[%clk 0:00:15]} 61. Kc4 {[%clk 0:00:23]}  Rh1 {[%clk 0:00:15]} 62. Kc5 {[%clk 0:00:20]}  Kxa5 {[%clk 0:00:14]} 63. Kc6+ {[%clk 0:00:20]}  Ka6 {[%clk 0:00:13]} 64. d5 {[%clk 0:00:20]}  Rc1+ {[%clk 0:00:12]} 65. Kd7 {[%clk 0:00:19]}  Kb7 {[%clk 0:00:13]} 66. d6 {[%clk 0:00:19]}  Rh1 {[%clk 0:00:13]} 67. Rb5+ {[%clk 0:00:19]}  Ka6 {[%clk 0:00:12]} 68. Rb2 {[%clk 0:00:19]}  Ka7 {[%clk 0:00:11]} 69. Kc7 {[%clk 0:00:18]}  Rc1+ {[%clk 0:00:10]} 70. Kd8 {[%clk 0:00:19]}  Rh1 {[%clk 0:00:11]} 71. d7 {[%clk 0:00:19]}  Re1 {[%clk 0:00:10]} 72. Rb4 {[%clk 0:00:17]}  Re2 {[%clk 0:00:08]} 73. Kc7 {[%clk 0:00:17]}  Rc2+ {[%clk 0:00:08]} 74. Kd6 {[%clk 0:00:16]}  Rd2+ {[%clk 0:00:08]} 75. Kc6 {[%clk 0:00:16]}  Rd1 {[%clk 0:00:08]} 76. Kc7 {[%clk 0:00:14]}  Rc1+ {[%clk 0:00:08]} 77. Kd8 {[%clk 0:00:14]}  Re1 {[%clk 0:00:07]} 78. Rb5 {[%clk 0:00:13]}  Ka6 {[%clk 0:00:06]} 79. Rb2 {[%clk 0:00:12]}  Ka7 {[%clk 0:00:06]} 80. Kc8 {[%clk 0:00:06]}  Rc1+ {[%clk 0:00:05]} 81. Kd8 {[%clk 0:00:07]}  Re1 {[%clk 0:00:05]} 1/2-1/2


[Site "https://www.chess.com"]

[Event "Titled Tuesday Blitz July 11 Late 2023"]
[White "Da Matta, Eduardo Cesar"]
[Black "Zhang, Derek"]
[WhiteFideId "2193108"]
[BlackFideId "2087871"]
[WhiteElo "2325"]
[BlackElo "2510"]
[Result "0-1"]
[Round "7"]
[TimeControl "180+2"]
[Date "2023.07.11"]
[WhiteClock "0:00:17"]
[BlackClock "0:00:40"]
[Board "87"]

1. d4 {[%clk 0:03:00]}  d6 {[%clk 0:03:00]} 2. Nf3 {[%clk 0:02:59]}  f5 {[%clk 0:03:00]} 3. g3 {[%clk 0:02:58]}  Nf6 {[%clk 0:03:00]} 4. Bg2 {[%clk 0:02:59]}  g6 {[%clk 0:03:01]} 5. O-O {[%clk 0:02:59]}  Bg7 {[%clk 0:03:02]} 6. c4 {[%clk 0:02:58]}  O-O {[%clk 0:03:02]} 7. b3 {[%clk 0:02:59]}  c6 {[%clk 0:03:02]} 8. Bb2 {[%clk 0:02:59]}  Qc7 {[%clk 0:03:02]} 9. Nbd2 {[%clk 0:02:59]}  Re8 {[%clk 0:02:58]} 10. Qc2 {[%clk 0:02:59]}  Na6 {[%clk 0:02:56]} 11. e4 {[%clk 0:02:57]}  Nb4 {[%clk 0:02:42]} 12. Qb1 {[%clk 0:02:58]}  fxe4 {[%clk 0:02:42]} 13. Nxe4 {[%clk 0:02:57]}  Nxe4 {[%clk 0:02:20]} 14. Qxe4 {[%clk 0:02:54]}  Bf5 {[%clk 0:02:20]} 15. Qh4 {[%clk 0:02:51]}  Bf6 {[%clk 0:02:01]} 16. Qf4 {[%clk 0:02:51]}  Nd3 {[%clk 0:02:00]} 17. Qd2 {[%clk 0:02:50]}  Nxb2 {[%clk 0:01:59]} 18. Qxb2 {[%clk 0:02:51]}  e5 {[%clk 0:01:58]} 19. dxe5 {[%clk 0:02:48]}  dxe5 {[%clk 0:01:59]} 20. Rfe1 {[%clk 0:02:32]}  Bg7 {[%clk 0:01:54]} 21. Rad1 {[%clk 0:01:27]}  e4 {[%clk 0:01:52]} 22. Nd4 {[%clk 0:01:27]}  Rad8 {[%clk 0:01:33]} 23. Rd2 {[%clk 0:01:04]}  Qb6 {[%clk 0:01:18]} 24. c5 {[%clk 0:01:01]}  Qxc5 {[%clk 0:01:17]} 25. Red1 {[%clk 0:01:01]}  Qb6 {[%clk 0:01:02]} 26. b4 {[%clk 0:00:57]}  Kh8 {[%clk 0:00:57]} 27. a4 {[%clk 0:00:51]}  a5 {[%clk 0:00:50]} 28. Nxc6 {[%clk 0:00:21]}  Bxb2 {[%clk 0:00:41]} 29. Rxd8 {[%clk 0:00:17]}  Qxc6 {[%clk 0:00:40]} 0-1


[Site "https://www.chess.com"]

[Event "Titled Tuesday Blitz July 11 Late 2023"]
[White "Marchesich, Giovanni"]
[Black "Merino Garcia, Rafael II"]
[WhiteFideId "2824790"]
[BlackFideId "2209128"]
[WhiteElo "2287"]
[BlackElo "2501"]
[Result "0-1"]
[Round "7"]
[TimeControl "180+2"]
[Date "2023.07.11"]
[WhiteClock "0:00:41"]
[BlackClock "0:01:01"]
[Board "91"]

1. e4 {[%clk 0:03:00]}  d6 {[%clk 0:02:55]} 2. d4 {[%clk 0:02:59]}  Nd7 {[%clk 0:02:54]} 3. c4 {[%clk 0:02:54]}  g6 {[%clk 0:02:53]} 4. f4 {[%clk 0:02:53]}  Bg7 {[%clk 0:02:53]} 5. Nc3 {[%clk 0:02:53]}  e5 {[%clk 0:02:50]} 6. Nf3 {[%clk 0:02:51]}  exd4 {[%clk 0:02:49]} 7. Nxd4 {[%clk 0:02:51]}  Ne7 {[%clk 0:02:48]} 8. Be3 {[%clk 0:02:50]}  O-O {[%clk 0:02:47]} 9. Be2 {[%clk 0:02:51]}  Nc6 {[%clk 0:02:44]} 10. O-O {[%clk 0:02:50]}  Nf6 {[%clk 0:02:42]} 11. Bf3 {[%clk 0:02:45]}  Re8 {[%clk 0:02:33]} 12. Nxc6 {[%clk 0:02:39]}  bxc6 {[%clk 0:02:33]} 13. e5 {[%clk 0:02:38]}  dxe5 {[%clk 0:02:33]} 14. Bxc6 {[%clk 0:02:37]}  Bd7 {[%clk 0:02:15]} 15. Bxa8 {[%clk 0:02:34]}  Qxa8 {[%clk 0:02:15]} 16. fxe5 {[%clk 0:02:33]}  Rxe5 {[%clk 0:02:15]} 17. Bd4 {[%clk 0:02:31]}  Rg5 {[%clk 0:02:15]} 18. Qe2 {[%clk 0:02:02]}  Bc6 {[%clk 0:02:08]} 19. g3 {[%clk 0:01:54]}  Nh5 {[%clk 0:01:31]} 20. Bxg7 {[%clk 0:01:51]}  Nxg3 {[%clk 0:01:28]} 21. hxg3 {[%clk 0:01:36]}  Rxg3+ {[%clk 0:01:27]} 22. Kh2 {[%clk 0:01:31]}  Rg2+ {[%clk 0:01:26]} 23. Qxg2 {[%clk 0:01:22]}  Bxg2 {[%clk 0:01:27]} 24. Rf2 {[%clk 0:01:21]}  Bc6 {[%clk 0:01:19]} 25. Bf6 {[%clk 0:01:18]}  Qf8 {[%clk 0:01:02]} 26. Rd1 {[%clk 0:01:16]}  Qh6+ {[%clk 0:01:02]} 27. Kg3 {[%clk 0:01:01]}  Qe3+ {[%clk 0:01:02]} 28. Kg4 {[%clk 0:00:52]}  h5+ {[%clk 0:01:01]} 29. Kh4 {[%clk 0:00:47]}  Qxf2+ {[%clk 0:01:01]} 30. Kg5 {[%clk 0:00:47]}  Qf5+ {[%clk 0:01:01]} 31. Kh6 {[%clk 0:00:41]}  Qxf6 {[%clk 0:01:01]} 0-1


[Site "https://www.chess.com"]

[Event "Titled Tuesday Blitz July 11 Late 2023"]
[White "rionelG"]
[Black "Novikov, Evgenij"]
[BlackFideId "4125380"]
[WhiteElo "2275"]
[BlackElo "2490"]
[Result "1-0"]
[Round "7"]
[TimeControl "180+2"]
[Date "2023.07.11"]
[WhiteClock "0:00:16"]
[BlackClock "0:00:00"]
[Board "92"]

1. e4 {[%clk 0:03:00]}  e6 {[%clk 0:02:59]} 2. d3 {[%clk 0:03:00]}  d5 {[%clk 0:02:58]} 3. Nd2 {[%clk 0:03:00]}  c5 {[%clk 0:02:57]} 4. g3 {[%clk 0:03:00]}  Nc6 {[%clk 0:02:57]} 5. Bg2 {[%clk 0:03:01]}  h5 {[%clk 0:02:54]} 6. h3 {[%clk 0:02:59]}  h4 {[%clk 0:02:54]} 7. g4 {[%clk 0:02:59]}  dxe4 {[%clk 0:02:44]} 8. dxe4 {[%clk 0:02:59]}  e5 {[%clk 0:02:43]} 9. Ngf3 {[%clk 0:02:58]}  Nge7 {[%clk 0:02:41]} 10. O-O {[%clk 0:02:57]}  Ng6 {[%clk 0:02:41]} 11. Nc4 {[%clk 0:02:54]}  Qc7 {[%clk 0:02:40]} 12. Ne3 {[%clk 0:02:52]}  Be6 {[%clk 0:02:34]} 13. Nd5 {[%clk 0:02:51]}  Qd7 {[%clk 0:02:29]} 14. c3 {[%clk 0:02:46]}  O-O-O {[%clk 0:02:17]} 15. Qa4 {[%clk 0:02:25]}  Bxg4 {[%clk 0:01:54]} 16. hxg4 {[%clk 0:02:07]}  h3 {[%clk 0:01:55]} 17. Bh1 {[%clk 0:02:04]}  Qxg4+ {[%clk 0:01:54]} 18. Kh2 {[%clk 0:02:03]}  Rxd5 {[%clk 0:01:02]} 19. Rg1 {[%clk 0:01:55]}  Qxg1+ {[%clk 0:00:40]} 20. Kxg1 {[%clk 0:01:50]}  Rd7 {[%clk 0:00:37]} 21. Be3 {[%clk 0:01:44]}  Nf4 {[%clk 0:00:37]} 22. Nxe5 {[%clk 0:01:36]}  h2+ {[%clk 0:00:15]} 23. Kf1 {[%clk 0:01:35]}  Nxe5 {[%clk 0:00:15]} 24. Bxf4 {[%clk 0:01:35]}  Bd6 {[%clk 0:00:15]} 25. Qxa7 {[%clk 0:01:04]}  Rhd8 {[%clk 0:00:14]} 26. Bxe5 {[%clk 0:01:02]}  Bxe5 {[%clk 0:00:15]} 27. Qxc5+ {[%clk 0:01:01]}  Bc7 {[%clk 0:00:15]} 28. Re1 {[%clk 0:00:26]}  Kb8 {[%clk 0:00:14]} 29. e5 {[%clk 0:00:25]}  Rd1 {[%clk 0:00:10]} 30. Qb5 {[%clk 0:00:17]}  Rxe1+ {[%clk 0:00:10]} 31. Kxe1 {[%clk 0:00:17]}  b6 {[%clk 0:00:11]} 32. Qc6 {[%clk 0:00:16]}  Kc8 {[%clk 0:00:10]} 33. Qb7+ {[%clk 0:00:16]}  Kd7 {[%clk 0:00:10]} 34. Qc6+ {[%clk 0:00:16]}  Kc8 {[%clk 0:00:09]} 35. f4 {[%clk 0:00:15]}  Rd7 {[%clk 0:00:06]} 36. Qb7+ {[%clk 0:00:14]}  Kd8 {[%clk 0:00:06]} 37. Bc6 {[%clk 0:00:14]}  f6 {[%clk 0:00:03]} 38. Bxd7 {[%clk 0:00:13]}  Kxd7 {[%clk 0:00:03]} 39. Qg2 {[%clk 0:00:12]}  g5 {[%clk 0:00:03]} 40. Qxh2 {[%clk 0:00:12]}  gxf4 {[%clk 0:00:03]} 41. Qxf4 {[%clk 0:00:12]}  Bxe5 {[%clk 0:00:04]} 42. Qf5+ {[%clk 0:00:12]}  Kc7 {[%clk 0:00:04]} 43. Ke2 {[%clk 0:00:13]}  Kc6 {[%clk 0:00:04]} 44. Kd3 {[%clk 0:00:14]}  Kd5 {[%clk 0:00:05]} 45. Qe4+ {[%clk 0:00:14]}  Kc5 {[%clk 0:00:05]} 46. b4+ {[%clk 0:00:15]}  Kb5 {[%clk 0:00:05]} 47. Qd5+ {[%clk 0:00:15]}  Ka4 {[%clk 0:00:04]} 48. Qc6+ {[%clk 0:00:15]}  Ka3 {[%clk 0:00:05]} 49. Qxb6 {[%clk 0:00:15]}  Kxa2 {[%clk 0:00:05]} 50. Qa6+ {[%clk 0:00:16]}  Kb3 {[%clk 0:00:00]} 51. b5 {[%clk 0:00:16]} 1-0


[Site "https://www.chess.com"]

[Event "Titled Tuesday Blitz July 11 Late 2023"]
[White "Sala, Giulia"]
[Black "SergioMoralesG"]
[WhiteFideId "2840451"]
[WhiteElo "2255"]
[BlackElo "2464"]
[Result "1-0"]
[Round "7"]
[TimeControl "180+2"]
[Date "2023.07.11"]
[WhiteClock "0:00:59"]
[BlackClock "0:00:00"]
[Board "95"]

1. e4 {[%clk 0:03:00]}  e5 {[%clk 0:02:59]} 2. Nf3 {[%clk 0:03:00]}  Nf6 {[%clk 0:02:59]} 3. Bc4 {[%clk 0:02:58]}  Nc6 {[%clk 0:02:56]} 4. O-O {[%clk 0:02:56]}  Be7 {[%clk 0:02:56]} 5. Re1 {[%clk 0:02:55]}  Nxe4 {[%clk 0:02:50]} 6. Bxf7+ {[%clk 0:02:50]}  Kxf7 {[%clk 0:02:49]} 7. Rxe4 {[%clk 0:02:50]}  Bf6 {[%clk 0:02:45]} 8. d4 {[%clk 0:02:50]}  d5 {[%clk 0:02:37]} 9. Rxe5 {[%clk 0:02:44]}  Nxe5 {[%clk 0:02:28]} 10. dxe5 {[%clk 0:02:43]}  Be7 {[%clk 0:02:27]} 11. Nc3 {[%clk 0:02:38]}  Be6 {[%clk 0:02:27]} 12. Ne2 {[%clk 0:02:30]}  Rf8 {[%clk 0:02:23]} 13. Ned4 {[%clk 0:02:30]}  Qd7 {[%clk 0:02:20]} 14. Ng5+ {[%clk 0:02:20]}  Bxg5 {[%clk 0:02:19]} 15. Bxg5 {[%clk 0:02:19]}  Kg8 {[%clk 0:02:16]} 16. b4 {[%clk 0:02:16]}  a5 {[%clk 0:02:07]} 17. b5 {[%clk 0:02:11]}  c5 {[%clk 0:02:03]} 18. bxc6 {[%clk 0:02:11]}  bxc6 {[%clk 0:02:04]} 19. Qe2 {[%clk 0:01:56]}  c5 {[%clk 0:01:59]} 20. Nb5 {[%clk 0:01:56]}  Bg4 {[%clk 0:01:25]} 21. f3 {[%clk 0:01:53]}  Be6 {[%clk 0:01:19]} 22. Rd1 {[%clk 0:01:43]}  a4 {[%clk 0:01:10]} 23. a3 {[%clk 0:01:41]}  Rab8 {[%clk 0:01:07]} 24. Nd6 {[%clk 0:01:41]}  Rb2 {[%clk 0:01:03]} 25. Bh4 {[%clk 0:01:39]}  d4 {[%clk 0:00:58]} 26. f4 {[%clk 0:01:30]}  Bf5 {[%clk 0:00:56]} 27. Qc4+ {[%clk 0:01:29]}  Kh8 {[%clk 0:00:54]} 28. Qxc5 {[%clk 0:01:28]}  Bxc2 {[%clk 0:00:44]} 29. Rxd4 {[%clk 0:01:23]}  Rb1+ {[%clk 0:00:30]} 30. Kf2 {[%clk 0:01:23]}  Bg6 {[%clk 0:00:29]} 31. Nc4 {[%clk 0:01:18]}  Qf7 {[%clk 0:00:20]} 32. e6 {[%clk 0:01:05]}  Qf5 {[%clk 0:00:17]} 33. Qxf5 {[%clk 0:01:06]}  Bxf5 {[%clk 0:00:13]} 34. e7 {[%clk 0:01:06]}  Re8 {[%clk 0:00:13]} 35. Rd8 {[%clk 0:01:07]}  Rb8 {[%clk 0:00:09]} 36. Nd6 {[%clk 0:01:05]}  Bg6 {[%clk 0:00:07]} 37. Nxe8 {[%clk 0:01:03]}  Rb2+ {[%clk 0:00:05]} 38. Ke3 {[%clk 0:01:02]}  h6 {[%clk 0:00:00]} 39. Nf6+ {[%clk 0:00:59]} 1-0


[Site "https://www.chess.com"]

[Event "Titled Tuesday Blitz July 11 Late 2023"]
[White "gordonzyxu"]
[Black "Nefedov, Sergey"]
[BlackFideId "24113417"]
[WhiteElo "1985"]
[BlackElo "2649"]
[Result "0-1"]
[Round "7"]
[TimeControl "180+2"]
[Date "2023.07.11"]
[WhiteClock "0:00:10"]
[BlackClock "0:01:15"]
[Board "100"]

1. e4 {[%clk 0:03:00]}  d5 {[%clk 0:02:59]} 2. exd5 {[%clk 0:02:59]}  Qxd5 {[%clk 0:03:00]} 3. Nc3 {[%clk 0:02:59]}  Qd8 {[%clk 0:03:00]} 4. d4 {[%clk 0:02:59]}  Nf6 {[%clk 0:03:01]} 5. Nf3 {[%clk 0:02:59]}  c6 {[%clk 0:03:00]} 6. Bc4 {[%clk 0:02:57]}  Bf5 {[%clk 0:03:00]} 7. O-O {[%clk 0:02:55]}  e6 {[%clk 0:03:00]} 8. Bg5 {[%clk 0:02:53]}  Be7 {[%clk 0:03:00]} 9. Qd2 {[%clk 0:02:50]}  O-O {[%clk 0:03:00]} 10. Rfe1 {[%clk 0:02:48]}  Nbd7 {[%clk 0:02:54]} 11. Bd3 {[%clk 0:02:45]}  Bg6 {[%clk 0:02:54]} 12. Rad1 {[%clk 0:02:28]}  a5 {[%clk 0:02:51]} 13. Ne2 {[%clk 0:02:11]}  a4 {[%clk 0:02:42]} 14. Nf4 {[%clk 0:02:07]}  a3 {[%clk 0:02:35]} 15. b3 {[%clk 0:02:02]}  Nd5 {[%clk 0:02:25]} 16. Nxg6 {[%clk 0:01:58]}  hxg6 {[%clk 0:02:18]} 17. c4 {[%clk 0:01:40]}  Nb4 {[%clk 0:01:59]} 18. Bb1 {[%clk 0:01:24]}  Ra5 {[%clk 0:01:54]} 19. d5 {[%clk 0:01:12]}  cxd5 {[%clk 0:01:52]} 20. c5 {[%clk 0:00:57]}  Nc6 {[%clk 0:01:39]} 21. b4 {[%clk 0:00:54]}  Ra4 {[%clk 0:01:31]} 22. b5 {[%clk 0:00:49]}  Bxg5 {[%clk 0:01:31]} 23. Nxg5 {[%clk 0:00:43]}  Ne7 {[%clk 0:01:29]} 24. Qe3 {[%clk 0:00:40]}  Nf5 {[%clk 0:01:25]} 25. Qc1 {[%clk 0:00:35]}  Rc4 {[%clk 0:01:23]} 26. Qd2 {[%clk 0:00:34]}  Nxc5 {[%clk 0:01:20]} 27. Bxf5 {[%clk 0:00:34]}  gxf5 {[%clk 0:01:20]} 28. Rb1 {[%clk 0:00:26]}  Ne4 {[%clk 0:01:19]} 29. Nxe4 {[%clk 0:00:25]}  fxe4 {[%clk 0:01:20]} 30. Qe3 {[%clk 0:00:24]}  Qc7 {[%clk 0:01:20]} 31. Qxa3 {[%clk 0:00:23]}  Rc8 {[%clk 0:01:18]} 32. g3 {[%clk 0:00:21]}  Qc5 {[%clk 0:01:16]} 33. Qb2 {[%clk 0:00:18]}  Rc2 {[%clk 0:01:16]} 34. Rf1 {[%clk 0:00:08]}  Rxb2 {[%clk 0:01:15]} 35. Rxb2 {[%clk 0:00:09]}  e3 {[%clk 0:01:15]} 36. fxe3 {[%clk 0:00:08]}  Qxe3+ {[%clk 0:01:15]} 37. Rbf2 {[%clk 0:00:09]}  Rc2 {[%clk 0:01:15]} 38. Kg2 {[%clk 0:00:09]}  Rxf2+ {[%clk 0:01:15]} 39. Rxf2 {[%clk 0:00:10]}  d4 {[%clk 0:01:15]} 40. Rf3 {[%clk 0:00:10]}  Qe2+ {[%clk 0:01:15]} 41. Rf2 {[%clk 0:00:11]}  Qe4+ {[%clk 0:01:15]} 42. Kg1 {[%clk 0:00:11]}  d3 {[%clk 0:01:16]} 43. Kf1 {[%clk 0:00:10]}  Qh1# {[%clk 0:01:15]} 0-1


[Site "https://www.chess.com"]